bitfinex/quotes_SOLUSD_20250901
["timestamp","ask_amount","ask_price","bid_price","bid_amount"]
[1756745527006,8.21430715,198.77,198.76,0.12]
[1756745527201,0.14216157,198.76,198.74,0.12]
[1756745527402,3.3778489,198.75,198.74,0.12]
[1756745527600,3.3778489,198.75,198.74,0.83]
[1756745527803,26.0,198.75,198.74,0.83]
[1756745528005,29.3778489,198.75,198.74,0.83]
[1756745528447,3.3778489,198.75,198.74,0.83]
[1756745529299,26.0,198.76,198.74,0.83]
[1756745529501,3.3778489,198.75,198.74,0.12]
[1756745529921,3.99001047,198.75,198.74,0.12]
[1756745530125,8.20757109,198.75,198.74,0.12]
[1756745530419,3.99001047,198.75,198.74,0.12]
[1756745531189,0.14216157,198.74,198.72,0.12]
[1756745531390,8.20968977,198.73,198.72,0.12]
[1756745531731,4.83184087,198.73,198.72,0.12]
[1756745532231,8.20968977,198.73,198.72,0.12]
[1756745532612,4.83184087,198.73,198.72,0.12]
[1756745533122,3.99001047,198.73,198.72,0.12]
[1756745533329,17.58560448,198.73,198.72,0.12]
[1756745537028,29.52001047,198.73,198.72,0.12]
[1756745538647,20.0,198.71,198.7,0.12]
[1756745538834,39.73775558,198.69,198.68,0.12]
[1756745539010,26.0,198.62,198.58,0.71]
[1756745539204,0.14216157,198.6,198.58,0.71]
[1756745539508,3.50897786,198.61,198.59,0.71]
[1756745539918,3.36681629,198.61,198.59,0.71]
[1756745540111,3.36681629,198.61,198.6,0.71]
[1756745540309,26.0,198.64,198.6,0.71]
[1756745541124,4.27964865,198.64,198.6,0.71]
[1756745541315,26.0,198.66,198.6,0.71]
[1756745541615,3.36492143,198.65,198.6,0.71]
[1756745542531,0.25,198.64,198.55,13.59559401]
[1756745542722,13.59559401,198.61,198.55,0.71]
[1756745543033,26.0,198.58,198.55,0.71]
[1756745543530,0.14216157,198.57,198.55,0.71]
[1756745544540,0.14216157,198.57,198.52,0.91]
[1756745544716,0.14216157,198.57,198.53,0.71]
[1756745545117,0.14216157,198.57,198.55,0.12]
[1756745549617,0.14216157,198.57,198.56,0.71]
[1756745549818,0.14216157,198.57,198.55,0.12]
[1756745550028,0.14216157,198.57,198.55,0.83]
[1756745550239,26.14216157,198.57,198.55,0.83]
[1756745550632,26.14216157,198.57,198.55,0.12]
[1756745551245,26.14216157,198.57,198.56,0.71]
[1756745551614,26.14216157,198.57,198.55,0.12]
[1756745551819,26.14216157,198.57,198.55,0.83]
[1756745552262,26.14216157,198.57,198.56,0.71]
[1756745552543,26.14216157,198.57,198.55,0.12]
[1756745552718,26.14216157,198.57,198.55,0.83]
[1756745554161,2.63285789,198.59,198.55,0.12]
[1756745554332,2.63285789,198.59,198.56,0.71]
[1756745554648,26.0,198.57,198.55,0.12]
[1756745555360,26.0,198.57,198.56,0.66]
[1756745559531,28.63228052,198.62,198.56,0.66]
[1756745559733,137.93750053,198.65,198.56,0.66]
[1756745559931,26.0,198.61,198.56,0.66]
[1756745560237,6.76952677,198.65,198.56,0.66]
[1756745560440,7.09494583,198.64,198.56,0.66]
[1756745560642,26.0,198.61,198.56,0.66]
[1756745561028,6.76952677,198.65,198.56,0.66]
[1756745561239,26.0,198.61,198.56,0.66]
[1756745562653,26.0,198.62,198.56,0.66]
[1756745564356,26.0,198.66,198.56,0.66]
[1756745564555,33.09436445,198.65,198.56,0.66]
[1756745564858,3.36022712,198.64,198.57,17.85220009]
[1756745565057,3.359497,198.67,198.58,0.66]
[1756745565257,3.73337247,198.66,198.58,0.66]
[1756745565457,26.0,198.65,198.58,0.66]
[1756745566243,26.0,198.67,198.58,0.66]
[1756745566539,26.0,198.63,198.59,13.59559401]
[1756745566861,0.03,198.68,198.61,13.59559401]
[1756745567036,0.03,198.68,198.62,40.36]
[1756745567236,26.03,198.68,198.62,40.36]
[1756745567441,3.36193744,198.67,198.63,0.66]
[1756745567858,3.36193744,198.67,198.64,0.66]
[1756745568258,3.36193744,198.67,198.62,40.36]
[1756745568436,3.36193744,198.67,198.63,0.66]
[1756745568641,3.36393034,198.67,198.63,0.66]
[1756745569662,3.36393034,198.67,198.62,39.7]
[1756745569857,3.36393034,198.67,198.64,0.66]
[1756745570161,3.36393034,198.67,198.62,0.66]
[1756745570463,26.0,198.65,198.64,39.66]
[1756745570764,29.36393034,198.65,198.64,39.66]
[1756745571263,3.36393034,198.65,198.63,39.68]
[1756745571458,29.36393034,198.66,198.59,0.66]
[1756745571653,7.10410372,198.65,198.59,0.66]
[1756745571860,3.36393034,198.65,198.6,39.66]
[1756745572053,3.36393034,198.65,198.61,0.66]
[1756745572257,29.36393034,198.65,198.62,0.66]
[1756745572558,3.36393034,198.64,198.62,39.66]
[1756745572866,3.36393034,198.64,198.62,40.32]
[1756745575168,29.36393034,198.64,198.62,40.32]
[1756745575366,3.36393034,198.63,198.62,40.32]
[1756745576277,3.36898409,198.63,198.62,40.32]
[1756745576485,3.36898409,198.66,198.62,40.32]
[1756745576661,3.74399111,198.65,198.63,0.66]
[1756745576861,3.74399111,198.64,198.63,0.66]
[1756745577459,29.36898409,198.64,198.63,0.66]
[1756745578075,3.36898409,198.64,198.63,0.66]
[1756745578373,7.1146697,198.64,198.63,0.66]
[1756745578577,33.1146697,198.64,198.63,0.66]
[1756745578780,29.36898409,198.64,198.63,0.66]
[1756745579355,3.36898409,198.64,198.63,0.66]
[1756745580367,29.36898409,198.66,198.63,0.66]
[1756745580555,3.36898409,198.65,198.63,0.66]
[1756745581284,26.0,198.63,198.62,39.66]
[1756745581572,26.0,198.67,198.62,40.32]
[1756745581744,3.36975132,198.66,198.63,0.66]
[1756745585075,3.36975132,198.66,198.62,39.66]
[1756745585281,3.36975132,198.66,198.63,0.7]
[1756745585488,3.36975132,198.66,198.64,0.7]
[1756745585655,0.03,198.68,198.64,0.7]
[1756745586158,26.0,198.67,198.65,39.6]
[1756745586352,3.36975132,198.66,198.58,0.12]
[1756745586570,29.36975132,198.67,198.61,0.7]
[1756745586772,26.0,198.64,198.61,0.7]
[1756745586962,26.0,198.64,198.59,53.19559401]
[1756745587168,26.0,198.64,198.6,0.7]
[1756745587878,26.0,198.67,198.6,0.7]
[1756745588055,3.36797182,198.66,198.6,0.7]
[1756745589475,3.36797182,198.66,198.6,9.99181205]
[1756745589667,3.36797182,198.66,198.62,13.59559401]
[1756745589874,3.36797182,198.66,198.63,39.6]
[1756745590059,26.0,198.67,198.64,0.7]
[1756745590261,3.36797182,198.66,198.64,0.7]
[1756745590464,26.0,198.67,198.65,0.7]
[1756745590662,3.36797182,198.66,198.65,0.7]
[1756745591057,3.36797182,198.66,198.63,40.3]
[1756745591682,3.36797182,198.66,198.64,39.6]
[1756745593078,3.36797182,198.66,198.63,0.7]
[1756745593391,3.36797182,198.66,198.64,39.6]
[1756745594772,26.0,198.65,198.64,39.6]
[1756745594973,29.36797182,198.65,198.64,39.6]
[1756745598381,29.36797182,198.65,198.64,39.58]
[1756745598699,33.12317888,198.65,198.64,39.58]
[1756745598904,33.12317888,198.65,198.58,0.82]
[1756745599073,26.0,198.61,198.59,39.58]
[1756745599277,3.36797182,198.6,198.59,40.28]
[1756745599471,3.36797182,198.6,198.58,0.12]
[1756745599677,29.36797182,198.6,198.59,39.58]
[1756745599981,33.12476199,198.6,198.59,39.58]
[1756745600191,33.12563228,198.6,198.59,39.58]
[1756745600686,29.36797182,198.6,198.59,40.28]
[1756745600883,29.36797182,198.6,198.59,39.58]
[1756745601072,29.36797182,198.6,198.59,40.28]
[1756745601073,33.12700558,198.6,198.59,40.28]
[1756745603531,33.12700558,198.6,198.59,0.7]
[1756745603709,33.12700558,198.6,198.59,40.28]
[1756745604414,33.12700558,198.6,198.59,39.58]
[1756745604770,33.12700558,198.6,198.59,40.28]
[1756745607521,33.12700558,198.6,198.59,0.7]
[1756745607692,33.12700558,198.6,198.59,39.58]
[1756745608395,33.37700558,198.6,198.58,0.12]
[1756745608591,7.12700558,198.59,198.58,0.12]
[1756745608825,11.33823569,198.59,198.58,0.12]
[1756745609111,7.12700558,198.59,198.58,0.82]
[1756745609482,7.12700558,198.59,198.58,0.12]
[1756745609687,11.33823569,198.59,198.58,39.7]
[1756745610714,11.3408082,198.59,198.58,39.7]
[1756745611313,7.12957809,198.59,198.58,39.7]
[1756745611490,3.36797182,198.59,198.58,39.7]
[1756745611820,33.12880982,198.59,198.58,39.7]
[1756745613210,33.37880982,198.59,198.58,0.12]
[1756745613417,33.37880982,198.59,198.57,39.58]
[1756745613590,11.60747218,198.58,198.57,39.58]
[1756745613796,7.37880982,198.58,198.57,39.58]
[1756745613991,7.37880982,198.58,198.56,0.12]
[1756745614198,11.35741566,198.57,198.56,39.7]
[1756745614397,7.12646804,198.57,198.56,39.7]
[1756745616715,7.37646804,198.57,198.56,0.12]
[1756745617210,11.59994173,198.57,198.56,0.12]
[1756745618707,11.34994173,198.57,198.56,0.12]
[1756745619716,7.12646804,198.57,198.56,0.12]
[1756745620709,7.12646804,198.57,198.56,0.83]
[1756745621405,7.11726205,198.57,198.56,0.83]
[1756745622324,3.74929023,198.57,198.56,0.83]
[1756745622528,7.11726205,198.57,198.56,0.12]
[1756745623546,29.36797182,198.57,198.56,0.83]
[1756745630435,29.36797182,198.57,198.56,39.7]
[1756745631529,33.1160003,198.57,198.56,39.7]
[1756745631734,33.1160003,198.57,198.56,40.41]
[1756745632230,29.36797182,198.57,198.56,40.41]
[1756745633411,33.11773196,198.57,198.56,40.41]
[1756745634840,33.11773196,198.57,198.56,0.83]
[1756745635039,33.11773196,198.57,198.56,0.12]
[1756745635350,37.59120565,198.57,198.56,0.12]
[1756745635634,37.59242606,198.57,198.56,0.12]
[1756745635834,33.36895237,198.57,198.55,39.7]
[1756745636138,11.3387084,198.56,198.55,0.12]
[1756745636325,11.5887084,198.56,198.55,0.12]
[1756745636518,11.3387084,198.56,198.55,0.12]
[1756745637116,11.5887084,198.56,198.55,0.12]
[1756745637318,7.36895237,198.56,198.55,0.12]
[1756745637745,7.11895237,198.56,198.54,0.12]
[1756745637928,7.11895237,198.55,198.54,0.12]
[1756745639126,7.11895237,198.55,198.54,0.83]
[1756745639329,11.3403035,198.55,198.54,0.83]
[1756745639734,11.3403035,198.55,198.54,0.12]
[1756745640532,7.11895237,198.55,198.54,0.83]
[1756745641447,7.11895237,198.55,198.54,0.12]
[1756745641617,7.12123145,198.55,198.54,0.12]
[1756745642744,7.37123145,198.55,198.54,0.12]
[1756745643137,7.12123145,198.55,198.54,0.12]
[1756745643642,12.73619607,198.55,198.54,0.12]
[1756745644530,7.12123145,198.55,198.54,0.83]
[1756745645129,7.12533713,198.55,198.54,0.83]
[1756745645342,7.37533713,198.55,198.54,0.12]
[1756745646036,7.12533713,198.55,198.54,0.12]
[1756745647355,7.37533713,198.55,198.54,0.12]
[1756745647854,26.0,198.52,198.5,0.7]
[1756745648035,37.35269607,198.51,198.47,39.58]
[1756745648234,26.0,198.48,198.47,39.58]
[1756745648448,29.36797182,198.48,198.47,39.58]
[1756745648633,29.36797182,198.48,198.47,40.28]
[1756745649146,3.36797182,198.48,198.47,40.28]
[1756745649359,26.0,198.48,198.47,40.28]
[1756745649530,29.36797182,198.48,198.47,40.28]
[1756745650449,3.36797182,198.48,198.47,40.28]
[1756745650634,26.0,198.48,198.47,40.28]
[1756745650840,29.36797182,198.48,198.47,40.28]
[1756745651345,3.36797182,198.48,198.46,0.7]
[1756745651551,29.36797182,198.47,198.46,40.28]
[1756745651750,33.12391695,198.47,198.46,40.28]
[1756745654133,3.36797182,198.47,198.46,40.28]
[1756745654333,3.36797182,198.48,198.46,40.28]
[1756745654553,3.36797182,198.48,198.47,0.7]
[1756745655140,3.36797182,198.48,198.47,40.26]
[1756745655645,29.36797182,198.48,198.47,40.26]
[1756745658033,3.36797182,198.48,198.47,40.26]
[1756745658863,3.36797182,198.5,198.47,40.26]
[1756745659155,26.0,198.52,198.48,0.7]
[1756745659156,3.36797182,198.49,198.48,0.7]
[1756745659357,26.0,198.48,198.41,13.59559401]
[1756745659659,26.0,198.48,198.43,13.59559401]
[1756745659660,3.36797182,198.47,198.43,13.59559401]
[1756745659859,3.36797182,198.47,198.45,13.59559401]
[1756745660154,3.36797182,198.47,198.46,0.7]
[1756745660352,3.36797182,198.47,198.46,40.26]
[1756745660761,3.36797182,198.47,198.46,0.7]
[1756745660962,3.36797182,198.47,198.42,0.7]
[1756745661252,3.36797182,198.46,198.43,39.56]
[1756745661455,3.36797182,198.47,198.44,39.56]
[1756745661667,3.36797182,198.46,198.44,39.56]
[1756745661958,3.36797182,198.47,198.44,39.56]
[1756745662162,3.36797182,198.46,198.44,39.56]
[1756745662361,3.36797182,198.47,198.45,0.7]
[1756745662566,3.36797182,198.46,198.44,39.56]
[1756745662762,3.36797182,198.47,198.44,39.56]
[1756745662941,3.36797182,198.46,198.45,0.12]
[1756745663259,3.36797182,198.47,198.45,0.82]
[1756745663462,3.36797182,198.46,198.45,0.82]
[1756745663638,3.36797182,198.47,198.45,0.82]
[1756745663841,3.36797182,198.46,198.45,0.82]
[1756745664062,3.36797182,198.47,198.45,0.82]
[1756745664249,3.36797182,198.46,198.45,0.12]
[1756745664453,3.36797182,198.47,198.45,0.12]
[1756745664633,3.36797182,198.46,198.45,39.68]
[1756745664837,3.36797182,198.47,198.45,0.12]
[1756745665063,3.36797182,198.46,198.45,0.12]
[1756745665259,29.36797182,198.46,198.45,0.12]
[1756745666238,3.36797182,198.46,198.45,0.82]
[1756745666457,29.36797182,198.46,198.45,0.12]
[1756745668758,29.36797182,198.46,198.45,0.82]
[1756745669951,3.36797182,198.46,198.45,0.82]
[1756745670145,3.36797182,198.5,198.45,0.82]
[1756745670371,3.36797182,198.49,198.45,0.82]
[1756745670552,0.03,198.52,198.46,13.59559401]
[1756745670553,3.36797182,198.5,198.46,13.59559401]
[1756745670746,3.36797182,198.51,198.48,13.59559401]
[1756745670957,3.36797182,198.51,198.49,40.26]
[1756745671163,29.36797182,198.51,198.5,0.7]
[1756745671677,3.36797182,198.51,198.5,0.7]
[1756745671854,0.03,198.52,198.5,39.56]
[1756745672046,26.0,198.51,198.5,39.56]
[1756745672250,3.36797182,198.51,198.48,0.7]
[1756745672453,3.36797182,198.5,198.49,39.56]
[1756745672648,26.0,198.5,198.49,39.56]
[1756745672874,29.36797182,198.5,198.49,39.56]
[1756745673373,29.36797182,198.5,198.45,0.82]
[1756745673374,3.36797182,198.5,198.45,0.82]
[1756745673554,3.36797182,198.49,198.46,40.26]
[1756745673875,26.0,198.49,198.46,40.26]
[1756745674073,3.36797182,198.48,198.46,39.56]
[1756745674276,3.36797182,198.48,198.47,0.7]
[1756745675780,26.0,198.49,198.47,14.29559401]
[1756745675971,0.03,198.52,198.48,0.66]
[1756745676142,3.3844821,198.51,198.49,13.59559401]
[1756745676350,3.3844821,198.51,198.5,14.25559401]
[1756745676549,0.03,198.52,198.5,14.25559401]
[1756745676863,3.4144821,198.52,198.51,40.22]
[1756745677170,0.03,198.52,198.51,40.22]
[1756745679051,0.03,198.52,198.51,0.66]
[1756745679256,0.03,198.52,198.51,40.22]
[1756745681093,0.03,198.52,198.51,53.81559401]
[1756745681257,0.03,198.52,198.51,78.61595304]
[1756745681657,0.03,198.52,198.51,108.00431404]
[1756745681985,0.03,198.58,198.56,13.59559401]
[1756745682158,0.03,198.58,198.57,61.74024083]
[1756745682572,0.03,198.58,198.57,22.78024083]
[1756745682772,0.03,198.58,198.57,18.02003401]
[1756745683616,0.03,198.58,198.57,57.64003401]
[1756745683901,0.03,198.58,198.57,14.25559401]
[1756745684187,0.03,198.58,198.57,53.87559401]
[1756745684691,0.03,198.58,198.57,14.25559401]
[1756745684892,0.03,198.58,198.57,53.85559401]
[1756745686392,0.03,198.58,198.57,14.25559401]
[1756745686701,0.03,198.58,198.57,53.83559401]
[1756745687012,0.03,198.58,198.57,59.3752022]
[1756745687391,0.03,198.58,198.57,55.87401201]
[1756745687576,0.03,198.58,198.57,53.85559401]
[1756745688005,0.03,198.58,198.57,14.25559401]
[1756745688312,0.03,198.58,198.57,53.85559401]
[1756745688801,0.03,198.58,198.57,14.25559401]
[1756745688978,0.03,198.58,198.55,13.59559401]
[1756745689176,0.03,198.58,198.56,39.6]
[1756745689404,0.28,198.58,198.54,2.018622]
[1756745689594,0.28,198.58,198.52,0.66]
[1756745689595,0.28,198.58,198.55,39.6]
[1756745689904,0.25,198.57,198.5,0.12]
[1756745690106,3.63707808,198.57,198.51,39.6]
[1756745690306,3.63707808,198.57,198.52,39.6]
[1756745690604,3.41707808,198.58,198.52,40.26]
[1756745691276,0.03,198.58,198.52,40.26]
[1756745691682,0.25,198.57,198.52,39.6]
[1756745691876,0.03,198.58,198.52,39.6]
[1756745692113,26.03,198.58,198.52,39.6]
[1756745692409,3.38707808,198.57,198.53,39.58]
[1756745692609,3.38707808,198.57,198.5,13.71559401]
[1756745692610,0.25,198.56,198.5,13.71559401]
[1756745692797,0.25,198.56,198.51,39.58]
[1756745693681,29.41707808,198.58,198.52,0.66]
[1756745693909,26.0,198.55,198.52,0.66]
[1756745694402,0.03,198.58,198.52,0.66]
[1756745694597,0.03,198.58,198.53,13.59559401]
[1756745694784,0.03,198.58,198.54,0.66]
[1756745694985,0.03,198.58,198.55,39.58]
[1756745695412,0.03,198.58,198.55,40.24]
[1756745695722,0.03,198.58,198.56,0.66]
[1756745696716,0.03,198.58,198.55,39.58]
[1756745696882,0.03,198.58,198.56,0.66]
[1756745700391,0.03,198.58,198.57,13.59559401]
[1756745700913,0.03,198.58,198.55,2.01852]
[1756745701212,0.03,198.58,198.57,0.66]
[1756745701410,0.03,198.58,198.57,39.56]
[1756745701801,0.03,198.58,198.57,40.22]
[1756745702000,0.03,198.58,198.57,0.66]
[1756745702186,0.03,198.58,198.57,40.22]
[1756745702788,0.03,198.58,198.57,53.81559401]
[1756745704012,0.03,198.58,198.57,58.85160146]
[1756745704216,0.03,198.58,198.57,63.10820754]
[1756745704405,0.03,198.58,198.57,83.10820754]
[1756745704603,0.03,198.58,198.57,78.85160146]
[1756745704803,0.03,198.58,198.57,83.10820754]
[1756745705211,0.03,198.58,198.57,63.10820754]
[1756745705404,0.03,198.58,198.57,14.25559401]
[1756745705721,0.03,198.58,198.57,53.79559401]
[1756745706012,0.03,198.58,198.57,14.25559401]
[1756745706212,0.03,198.58,198.57,53.13559401]
[1756745706822,0.03,198.58,198.57,13.59559401]
[1756745707018,0.03,198.58,198.54,0.12]
[1756745707223,0.25,198.57,198.54,0.12]
[1756745707517,0.25,198.56,198.55,39.58]
[1756745709001,0.03,198.58,198.55,39.58]
[1756745709202,0.25,198.57,198.55,39.58]
[1756745710013,0.25,198.56,198.54,0.12]
[1756745710328,0.25,198.56,198.55,25.5]
[1756745710897,0.25,198.56,198.54,0.12]
[1756745711227,0.25,198.56,198.54,39.7]
[1756745711424,0.25,198.55,198.54,39.7]
[1756745712218,26.0,198.56,198.54,39.7]
[1756745712421,3.36945261,198.55,198.54,39.7]
[1756745713313,3.37947781,198.55,198.54,39.7]
[1756745714629,3.37947781,198.55,198.54,0.12]
[1756745714804,3.62947781,198.55,198.54,0.12]
[1756745715000,29.62947781,198.55,198.54,0.12]
[1756745715933,3.62947781,198.55,198.54,0.12]
[1756745716150,33.86492953,198.55,198.54,0.12]
[1756745716431,33.86492953,198.55,198.52,0.12]
[1756745716432,26.0,198.54,198.52,0.12]
[1756745716623,3.37947781,198.53,198.52,0.12]
[1756745716811,3.62947781,198.53,198.52,0.12]
[1756745718112,7.85769913,198.53,198.52,0.12]
[1756745718312,33.85769913,198.53,198.52,0.12]
[1756745718615,43.22758782,198.53,198.52,0.12]
[1756745719540,13.59559401,198.52,198.5,0.12]
[1756745719830,3.38199381,198.51,198.5,0.12]
[1756745720036,3.63199381,198.51,198.5,0.12]
[1756745720413,16.97758782,198.51,198.5,0.12]
[1756745720608,3.38199381,198.51,198.5,0.12]
[1756745720917,7.60661506,198.51,198.5,0.12]
[1756745721120,3.63199381,198.51,198.5,0.12]
[1756745721314,7.85463715,198.51,198.5,0.12]
[1756745721523,3.63199381,198.51,198.5,0.12]
[1756745722730,3.38199381,198.51,198.5,0.12]
[1756745723625,30.21857688,198.52,198.5,0.12]
[1756745723816,26.0,198.52,198.5,0.12]
[1756745724017,3.37470712,198.51,198.5,0.12]
[1756745724654,3.37470712,198.51,198.5,0.78]
[1756745724817,6.00709689,198.53,198.5,0.78]
[1756745725018,3.37470712,198.52,198.5,0.78]
[1756745725220,3.37470712,198.52,198.5,0.12]
[1756745725422,2.63238977,198.53,198.5,0.12]
[1756745725611,26.0,198.52,198.5,0.12]
[1756745725928,3.37413896,198.51,198.5,0.12]
[1756745726335,3.37400438,198.52,198.5,0.12]
[1756745726539,3.37400438,198.55,198.51,13.59559401]
[1756745726728,3.40400438,198.58,198.52,0.66]
[1756745726930,26.03,198.58,198.52,0.66]
[1756745727129,29.37400438,198.57,198.52,30.08]
[1756745727444,3.37400438,198.56,198.53,0.66]
[1756745727636,3.40400438,198.58,198.53,0.66]
[1756745727840,0.03,198.58,198.54,39.66]
[1756745728023,26.03,198.58,198.55,40.32]
[1756745728219,3.37400438,198.57,198.56,0.66]
[1756745728419,26.03,198.58,198.56,0.66]
[1756745728631,3.37400438,198.57,198.56,0.66]
[1756745728839,0.03,198.58,198.51,0.66]
[1756745729028,26.0,198.57,198.52,32.92]
[1756745729239,29.37400438,198.56,198.53,0.66]
[1756745729434,26.0,198.53,198.52,39.64]
[1756745730041,26.03,198.58,198.52,40.3]
[1756745730344,26.0,198.56,198.53,0.66]
[1756745730556,3.37507102,198.55,198.54,0.66]
[1756745731850,3.37507102,198.56,198.54,0.66]
[1756745732250,3.37507102,198.56,198.55,0.66]
[1756745732554,26.0,198.56,198.52,0.66]
[1756745732751,3.37507102,198.55,198.53,37.66]
[1756745732935,3.37507102,198.55,198.54,0.66]
[1756745733765,3.37507102,198.56,198.54,0.66]
[1756745734131,0.03,198.58,198.54,0.66]
[1756745734447,0.03,198.58,198.55,39.62]
[1756745734633,0.03,198.58,198.56,39.62]
[1756745734825,0.03,198.58,198.56,0.65]
[1756745735034,0.03,198.58,198.57,40.27]
[1756745735229,0.03,198.58,198.57,53.86559401]
[1756745736157,0.03,198.58,198.57,14.24559401]
[1756745736355,0.03,198.58,198.57,53.86559401]
[1756745738062,0.03,198.58,198.57,14.24559401]
[1756745738554,0.03,198.58,198.57,53.84559401]
[1756745739334,0.03,198.58,198.57,14.24559401]
[1756745739537,0.03,198.58,198.57,53.84559401]
[1756745740248,0.03,198.58,198.57,14.24559401]
[1756745740451,0.03,198.58,198.57,53.82559401]
[1756745741537,0.03,198.58,198.57,14.24559401]
[1756745741862,0.03,198.58,198.57,53.80559401]
[1756745742059,0.03,198.58,198.57,14.24559401]
[1756745742451,0.03,198.58,198.57,53.80559401]
[1756745743566,0.03,198.58,198.57,14.24559401]
[1756745743947,0.03,198.58,198.57,53.78559401]
[1756745745135,0.03,198.58,198.57,14.24559401]
[1756745745342,0.03,198.58,198.57,53.78559401]
[1756745747656,0.03,198.58,198.57,58.05333615]
[1756745747962,0.03,198.58,198.57,53.78559401]
[1756745748466,0.03,198.58,198.57,14.24559401]
[1756745748664,0.03,198.58,198.57,53.78559401]
[1756745749643,0.03,198.58,198.57,63.59294434]
[1756745749951,0.03,198.58,198.57,59.3252022]
[1756745750748,0.03,198.58,198.57,54.28919475]
[1756745750938,0.03,198.58,198.57,53.78559401]
[1756745752055,0.03,198.58,198.57,58.82160146]
[1756745752253,0.03,198.58,198.57,53.78559401]
[1756745752468,0.03,198.58,198.57,58.82160146]
[1756745752965,0.03,198.58,198.57,63.59294434]
[1756745754044,0.03,198.58,198.57,53.78559401]
[1756745755366,0.03,198.58,198.57,58.82160146]
[1756745755962,0.03,198.58,198.57,63.0893436]
[1756745756664,0.03,198.58,198.57,53.78559401]
[1756745758053,0.03,198.58,198.57,58.82160146]
[1756745759473,0.03,198.58,198.57,53.78559401]
[1756745759675,0.03,198.58,198.57,58.82160146]
[1756745759981,0.03,198.58,198.57,53.78559401]
[1756745760482,0.03,198.58,198.57,58.82160146]
[1756745760687,0.03,198.58,198.57,63.0893436]
[1756745760844,0.03,198.58,198.57,143.3893436]
[1756745761187,0.03,198.58,198.57,134.08559401]
[1756745761753,0.03,198.58,198.57,94.54559401]
[1756745761969,0.03,198.58,198.57,134.06559401]
[1756745763759,0.03,198.58,198.57,133.41559401]
[1756745764160,0.03,198.58,198.57,134.06559401]
[1756745766072,0.03,198.58,198.57,139.10160146]
[1756745766383,0.03,198.58,198.57,143.3693436]
[1756745766564,0.03,198.58,198.57,163.3693436]
[1756745767958,0.03,198.58,198.57,134.06559401]
[1756745768477,0.03,198.58,198.57,163.3693436]
[1756745772279,0.03,198.58,198.57,159.10160146]
[1756745772581,0.03,198.58,198.57,163.3693436]
[1756745774978,0.03,198.58,198.57,119.58160146]
[1756745775281,0.03,198.58,198.57,163.3693436]
[1756745778492,0.03,198.6,198.57,163.3693436]
[1756745778493,0.03,198.6,198.59,38.63109428]
[1756745778711,0.03,198.62,198.61,33.59559401]
[1756745778871,0.03,198.62,198.61,158.18683546]
[1756745779072,0.03,198.68,198.64,33.59559401]
[1756745779276,0.03,198.68,198.66,17.86333615]
[1756745779586,0.03,198.68,198.67,57.37871559]
[1756745781472,0.03,198.68,198.67,62.41218818]
[1756745781678,0.03,198.68,198.67,67.37993032]
[1756745782289,0.03,198.68,198.67,62.34645773]
[1756745782476,0.03,198.68,198.67,57.34987357]
[1756745782678,0.03,198.68,198.67,56.84652632]